bitfinex-derivatives/quotes_BTCF0:USTF0_20250814
["timestamp","ask_amount","ask_price","bid_price","bid_amount"]
[1755183180566,0.88626754,119180.0,119170.0,0.04783]
[1755183180854,1.0322475,119180.0,119160.0,0.3608]
[1755183181156,0.15931449,119170.0,119160.0,0.52331]
[1755183181352,0.28915785,119170.0,119160.0,1.1666756]
[1755183181552,0.28915785,119170.0,119160.0,1.18662735]
[1755183182254,0.28915785,119170.0,119160.0,0.81062175]
[1755183182560,0.28915785,119170.0,119160.0,1.18662735]
[1755183182760,0.29015785,119170.0,119160.0,1.18662735]
[1755183183457,0.21471406,119170.0,119160.0,1.18662735]
[1755183183960,0.21571406,119170.0,119160.0,1.18662735]
[1755183184356,0.2760761,119170.0,119160.0,1.18662735]
[1755183184862,0.21571406,119170.0,119160.0,1.18662735]
[1755183185054,0.2760761,119170.0,119160.0,1.18662735]
[1755183186058,0.21571406,119170.0,119160.0,1.18662735]
[1755183186250,0.2760761,119170.0,119160.0,1.18662735]
[1755183186668,0.2760761,119170.0,119160.0,0.81062175]
[1755183186860,0.2760761,119170.0,119160.0,1.18662735]
[1755183187461,0.2760761,119170.0,119160.0,0.81062175]
[1755183187662,0.2760761,119170.0,119160.0,1.18662735]
[1755183187964,0.21571406,119170.0,119160.0,1.11860297]
[1755183188261,0.29115785,119170.0,119160.0,1.11860297]
[1755183188762,0.21571406,119170.0,119160.0,1.11860297]
[1755183189259,0.38354606,119170.0,119160.0,0.00204]
[1755183189459,0.44835606,119170.0,119160.0,0.42961571]
[1755183189663,0.3545718,119170.0,119160.0,0.80562131]
[1755183189964,0.3545718,119170.0,119160.0,1.16642131]
[1755183189965,0.21571406,119170.0,119160.0,1.16642131]
[1755183190262,0.21273108,119180.0,119160.0,2.40502691]
[1755183190561,0.33582761,119180.0,119170.0,1.1674756]
[1755183190862,0.40330178,119180.0,119170.0,1.1674756]
[1755183191163,0.40330178,119180.0,119170.0,2.0284356]
[1755183191460,0.44711512,119180.0,119170.0,2.0735756]
[1755183191650,0.44811512,119180.0,119170.0,2.0735756]
[1755183193371,0.44711512,119180.0,119170.0,2.0735756]
[1755183193663,0.40938404,119180.0,119170.0,2.0735756]
[1755183195462,0.40938404,119180.0,119170.0,1.2118156]
[1755183195664,0.40938404,119180.0,119170.0,2.0732156]
[1755183195857,0.40938404,119180.0,119170.0,2.02787139]
[1755183196668,0.40938404,119180.0,119170.0,2.02779139]
[1755183198065,0.40938404,119180.0,119170.0,1.9597747]
[1755183199068,0.51504547,119180.0,119170.0,1.9597747]
[1755183199565,0.59051747,119180.0,119170.0,1.9597747]
[1755183199965,0.43485604,119180.0,119170.0,1.9597747]
[1755183200168,0.43485604,119180.0,119170.0,2.0344747]
[1755183200366,0.41975327,119180.0,119170.0,2.0344747]
[1755183201364,0.34464573,119200.0,119170.0,1.7550347]
[1755183201365,0.2431815,119200.0,119170.0,1.7550347]
[1755183201557,0.2676059,119200.0,119190.0,1.1058456]
[1755183201758,0.2676059,119200.0,119190.0,1.9667256]
[1755183201954,0.2676059,119200.0,119190.0,1.59072]
[1755183202158,0.3877759,119200.0,119190.0,1.9667256]
[1755183202559,0.5532359,119200.0,119190.0,1.9667256]
[1755183202756,0.6918559,119200.0,119190.0,1.9667256]
[1755183203671,0.73455609,119200.0,119190.0,1.9667256]
[1755183203868,0.73535609,119200.0,119190.0,1.06417901]
[1755183204173,0.5561462,119190.0,119180.0,1.8977756]
[1755183204362,1.11492609,119200.0,119180.0,1.7228756]
[1755183204563,1.03556049,119200.0,119190.0,0.48096]
[1755183205471,1.03556049,119200.0,119190.0,0.8569656]
[1755183205659,0.93488049,119200.0,119190.0,0.8569656]
[1755183206062,0.57408049,119200.0,119190.0,1.2177656]
[1755183206573,0.70982049,119200.0,119190.0,1.2177656]
[1755183208668,0.54321049,119200.0,119190.0,1.2177656]
[1755183209071,0.61602049,119200.0,119190.0,0.84176]
[1755183209374,0.61602049,119200.0,119190.0,1.2177656]
[1755183209375,0.92629588,119200.0,119190.0,1.2177656]
[1755183209579,0.92629588,119200.0,119190.0,2.0780456]
[1755183209877,0.92629588,119200.0,119190.0,1.70204]
[1755183210068,0.92629588,119200.0,119190.0,1.34124]
[1755183211369,0.98656915,119200.0,119190.0,1.7172456]
[1755183212174,0.98656915,119200.0,119190.0,0.35857]
[1755183212175,0.31459169,119200.0,119190.0,0.35857]
[1755183212378,0.61124809,119200.0,119190.0,0.329821]
[1755183212577,0.71759009,119200.0,119190.0,0.2844809]
[1755183212777,0.71759009,119200.0,119190.0,0.3324809]
[1755183212976,1.07839009,119200.0,119190.0,0.3324809]
[1755183213173,0.0838771,119160.0,119140.0,0.3608]
[1755183213369,0.39146993,119160.0,119150.0,1.2823956]
[1755183214374,0.43655993,119160.0,119150.0,1.2823956]
[1755183214579,0.55892993,119160.0,119150.0,1.2853956]
[1755183215174,0.95059993,119160.0,119150.0,1.7197256]
[1755183215376,1.03254993,119160.0,119150.0,1.7197256]
[1755183216270,1.03254993,119160.0,119150.0,1.7217256]
[1755183216882,1.03254993,119160.0,119150.0,1.7187256]
[1755183217073,1.03254993,119160.0,119150.0,1.34372]
[1755183217378,1.03254993,119160.0,119150.0,1.7197256]
[1755183218079,0.98211993,119160.0,119150.0,1.7197256]
[1755183218280,0.95059993,119160.0,119150.0,1.7197256]
[1755183218478,0.82822993,119160.0,119150.0,1.7197256]
[1755183220274,0.87778993,119160.0,119150.0,1.7197256]
[1755183220469,0.98211993,119160.0,119150.0,1.7197256]
[1755183221071,0.98211993,119160.0,119150.0,1.34372]
[1755183221277,0.98211993,119160.0,119150.0,1.7194056]
[1755183222285,1.04245707,119160.0,119150.0,1.7194056]
[1755183222486,1.01093707,119160.0,119150.0,1.7194056]
[1755183222688,1.04245707,119160.0,119150.0,1.7194056]
[1755183223587,1.01093707,119160.0,119150.0,1.7194056]
[1755183223987,1.04245707,119160.0,119150.0,1.7194056]
[1755183224482,1.01093707,119160.0,119150.0,1.7194056]
[1755183224892,1.04245707,119160.0,119150.0,1.7194056]
[1755183225787,0.98211993,119160.0,119150.0,1.7194056]
[1755183225987,1.03254993,119160.0,119150.0,1.7194056]
[1755183226388,1.0127233,119160.0,119150.0,1.7194056]
[1755183226588,1.03340235,119160.0,119150.0,1.7194056]
[1755183229195,0.98297235,119160.0,119150.0,1.7194056]
[1755183229393,0.95145235,119160.0,119150.0,1.7194056]
[1755183233203,0.75312235,119160.0,119150.0,1.7194056]
[1755183233800,0.95145235,119160.0,119150.0,1.7194056]
[1755183234001,0.98297235,119160.0,119150.0,1.7194056]
[1755183235812,0.98297235,119160.0,119150.0,1.4745716]
[1755183236310,1.09405235,119160.0,119150.0,1.4725716]
[1755183236502,1.09405235,119160.0,119150.0,1.4765716]
[1755183237211,1.09405235,119160.0,119150.0,1.4313416]
[1755183238098,1.15438949,119160.0,119150.0,1.4313416]
[1755183240605,1.15438949,119160.0,119150.0,0.769896]
[1755183240805,0.3965708,119140.0,119130.0,0.4787956]
[1755183241009,0.3965708,119140.0,119100.0,0.3608]
[1755183241010,0.083912,119110.0,119100.0,0.3608]
[1755183241213,0.15337105,119110.0,119100.0,1.6365394]
[1755183241510,0.26337105,119110.0,119100.0,1.6365394]
[1755183241716,0.52727105,119110.0,119100.0,0.4181394]
[1755183242011,0.68777105,119110.0,119100.0,1.2756594]
[1755183242208,0.34239105,119110.0,119100.0,1.2756594]
[1755183242414,0.34239105,119110.0,119100.0,0.8996538]
[1755183242602,0.21459105,119110.0,119100.0,1.4454794]
[1755183243306,0.21459105,119110.0,119100.0,1.822285]
[1755183243307,0.21179224,119110.0,119100.0,1.822285]
[1755183243509,0.21179224,119110.0,119100.0,1.4462794]
[1755183243709,0.2773326,119110.0,119100.0,1.4462794]
[1755183244014,0.3261126,119110.0,119100.0,1.4512794]
[1755183244606,0.3261126,119110.0,119100.0,1.4504794]
[1755183244805,0.3261126,119110.0,119100.0,1.4512794]
[1755183245006,0.36858085,119110.0,119100.0,1.4504794]
[1755183245716,0.23588885,119110.0,119100.0,1.8112794]
[1755183246916,0.23588885,119110.0,119100.0,1.8192794]
[1755183247519,0.3608,119130.0,119100.0,2.394185]
[1755183247816,0.6612689,119140.0,119130.0,0.13507]
[1755183248016,1.1045889,119140.0,119130.0,1.3681156]
[1755183248207,1.1461583,119140.0,119130.0,1.3681156]
[1755183249308,1.1461583,119140.0,119130.0,1.2330456]
[1755183249515,1.1461583,119140.0,119130.0,1.2849956]
[1755183250003,1.1461583,119140.0,119130.0,1.2899956]
[1755183250415,1.1461583,119140.0,119130.0,1.2929956]
[1755183251107,1.21485618,119140.0,119130.0,1.2929956]
[1755183251617,1.32379698,119140.0,119130.0,0.91699]
[1755183251813,0.4132749,119120.0,119110.0,0.3608]
[1755183252014,0.132692,119110.0,119100.0,0.3608]
[1755183252218,0.132692,119110.0,119100.0,1.5933656]
[1755183253414,0.232692,119110.0,119100.0,1.5933656]
[1755183253813,0.232692,119110.0,119100.0,1.5983656]
[1755183254106,0.232692,119110.0,119100.0,0.7418056]
[1755183254314,0.657092,119110.0,119100.0,1.2373256]
[1755183254519,0.657092,119110.0,119100.0,1.2423256]
[1755183256406,0.1326918,119110.0,119100.0,1.2423256]
[1755183256614,0.0839118,119110.0,119100.0,1.2423256]
[1755183256924,0.3004875,119130.0,119100.0,1.9799312]
[1755183257111,0.4204875,119130.0,119120.0,0.7520112]
[1755183257311,0.90527962,119130.0,119120.0,1.2320456]
[1755183257714,0.65357212,119130.0,119120.0,1.2320456]
[1755183258014,0.32306992,119130.0,119120.0,1.6080512]
[1755183258615,0.19306992,119130.0,119120.0,1.6080512]
[1755183259519,0.34706934,119130.0,119120.0,1.6080512]
[1755183259717,0.34706934,119130.0,119120.0,1.6110512]
[1755183259919,0.28667722,119130.0,119120.0,1.6110512]
[1755183260121,0.52097722,119130.0,119120.0,1.2350456]
[1755183260417,0.59644922,119130.0,119120.0,1.2380456]
[1755183260618,0.5724498,119130.0,119120.0,1.2380456]
[1755183260918,0.6437653,119130.0,119120.0,1.19268454]
[1755183261217,0.1492775,119130.0,119120.0,1.19268454]
[1755183261515,0.2331753,119130.0,119120.0,1.56869014]
[1755183261912,0.352975,119130.0,119120.0,1.56869014]
[1755183263118,0.352975,119130.0,119120.0,0.81667894]
[1755183263320,0.352975,119130.0,119120.0,1.19268454]
[1755183263523,0.352975,119130.0,119120.0,0.81667894]
[1755183263715,0.352975,119130.0,119120.0,1.19268454]
[1755183263914,0.789335,119130.0,119120.0,1.19268454]
[1755183264820,0.789335,119130.0,119120.0,0.81667894]
[1755183265020,0.789335,119130.0,119120.0,1.19268454]
[1755183267224,0.789335,119130.0,119120.0,1.1246428]
[1755183268117,0.789335,119130.0,119120.0,0.7486372]
[1755183268317,0.789335,119130.0,119120.0,1.1246428]
[1755183268824,1.150135,119130.0,119120.0,1.1246428]
[1755183269116,1.150135,119130.0,119120.0,0.7486372]
[1755183270423,1.150135,119130.0,119100.0,0.3608]
[1755183270424,0.18571,119110.0,119100.0,0.3608]
[1755183270627,0.76996712,119110.0,119100.0,1.5913656]
[1755183271918,0.64996712,119110.0,119100.0,1.21536]
[1755183272118,0.74996712,119110.0,119100.0,1.5913656]
[1755183272627,0.0248252,119110.0,119100.0,1.5921656]
[1755183272826,0.108737,119110.0,119100.0,1.5913656]
[1755183273025,0.154107,119110.0,119100.0,1.5953656]
[1755183273628,0.75996712,119110.0,119100.0,1.21936]
[1755183273823,0.699677,119110.0,119100.0,1.5993656]
[1755183274124,0.75996712,119110.0,119100.0,1.5993656]
[1755183275431,0.13048532,119110.0,119100.0,1.5993656]
[1755183275821,0.34439712,119110.0,119100.0,1.5993656]
[1755183276328,0.21439712,119110.0,119100.0,1.5993656]
[1755183276728,0.21439712,119110.0,119100.0,1.5953656]
[1755183277029,0.21439712,119110.0,119100.0,1.5973656]
[1755183277235,0.42280712,119110.0,119100.0,1.5973656]
[1755183277529,0.77996712,119110.0,119100.0,1.5943656]
[1755183277831,0.77996712,119110.0,119100.0,1.5963656]
[1755183278034,0.64996712,119110.0,119100.0,1.5963656]
[1755183278230,0.64996712,119110.0,119100.0,1.5953656]
[1755183278535,0.77996712,119110.0,119100.0,1.5953656]
[1755183278726,0.77996712,119110.0,119100.0,1.59566899]
[1755183279329,0.795149,119110.0,119100.0,1.71912967]
[1755183279529,0.719677,119110.0,119100.0,1.71912967]
[1755183279827,0.795149,119110.0,119100.0,1.71912967]
[1755183280226,0.795149,119110.0,119100.0,0.50376967]
[1755183280438,1.081277,119110.0,119100.0,0.85716]
[1755183280735,1.14157961,119110.0,119100.0,0.85716]
[1755183280936,0.78077961,119110.0,119100.0,0.85716]
[1755183281236,1.14157961,119110.0,119100.0,0.85716]
[1755183281531,1.14157961,119110.0,119070.0,0.86056967]
[1755183281532,0.0839329,119080.0,119070.0,0.86056967]
[1755183281727,0.47300382,119080.0,119070.0,1.71356967]
[1755183281927,0.47300382,119080.0,119070.0,1.35276967]
[1755183281928,0.77973664,119080.0,119070.0,1.35276967]
[1755183282434,1.08021572,119080.0,119070.0,1.35276967]
[1755183283436,1.08021572,119080.0,119070.0,0.855]
[1755183283624,1.08021572,119080.0,119070.0,1.35476967]
[1755183283829,1.08021572,119080.0,119070.0,0.857]
[1755183284024,1.14053664,119080.0,119050.0,0.86056967]
[1755183284224,1.14053664,119080.0,119050.0,0.49976967]
[1755183284225,0.5648865,119060.0,119050.0,0.49976967]
[1755183284435,0.83051666,119060.0,119050.0,1.35248967]
[1755183284833,1.19131666,119060.0,119050.0,1.35248967]
[1755183285028,1.19131666,119060.0,119050.0,0.85272]
[1755183285233,0.5648937,119050.0,119040.0,0.49976967]
[1755183285434,0.0839678,119030.0,119020.0,0.3608]
[1755183285647,0.10851062,119030.0,119020.0,1.71312967]
[1755183286130,0.15388062,119030.0,119020.0,1.71312967]
[1755183286537,0.15388062,119030.0,119020.0,1.21336]
[1755183286731,0.15388062,119030.0,119020.0,1.71312967]
[1755183287337,0.15388062,119030.0,119020.0,1.71512967]
[1755183287537,0.06609296,119030.0,119020.0,1.71592967]
[1755183287734,0.15006076,119030.0,119020.0,1.71792967]
[1755183287944,0.15006076,119030.0,119020.0,1.71712967]
[1755183288545,0.31543076,119030.0,119020.0,1.71712967]
[1755183289135,0.63100076,119030.0,119020.0,1.71712967]
[1755183289336,0.31543076,119030.0,119020.0,1.71712967]
[1755183290437,0.56529076,119030.0,119020.0,1.71712967]
[1755183290840,0.39040076,119030.0,119020.0,1.71712967]
[1755183291033,0.56529076,119030.0,119020.0,1.71712967]
[1755183291946,0.31543076,119030.0,119020.0,1.71712967]
[1755183292638,0.31543076,119030.0,119020.0,1.35632967]
[1755183293141,0.37551143,119030.0,119020.0,1.35632967]
[1755183293341,0.31543076,119030.0,119020.0,1.35632967]
[1755183294746,0.19543076,119030.0,119020.0,1.71712967]
[1755183295045,0.25547046,119030.0,119020.0,1.71712967]
[1755183295245,0.21010046,119030.0,119020.0,1.71712967]
[1755183295449,0.25703046,119030.0,119020.0,1.71616967]
[1755183295851,0.21010046,119030.0,119020.0,1.71616967]
[1755183296035,0.06609296,119030.0,119020.0,1.71616967]
[1755183296238,0.06609296,119030.0,119020.0,1.88420167]
[1755183296835,0.06609296,119030.0,119020.0,1.88220167]
[1755183297047,0.1440004,119040.0,119020.0,2.08100167]
[1755183297048,0.0600397,119040.0,119020.0,2.08100167]
[1755183297244,0.0839614,119040.0,119030.0,0.86056967]
[1755183297639,0.0839614,119040.0,119030.0,1.02858567]
[1755183297841,0.23290076,119040.0,119030.0,0.528816]
[1755183298144,0.23290076,119040.0,119030.0,0.86056967]
[1755183298545,0.65803076,119040.0,119030.0,0.86056967]
[1755183298851,0.76803076,119040.0,119030.0,0.86056967]
[1755183299055,0.2764778,119030.0,119020.0,0.86056967]
[1755183299246,0.5560278,119030.0,119020.0,1.35096967]
[1755183299439,0.6760278,119030.0,119020.0,0.8512]
[1755183299639,0.6760278,119030.0,119020.0,1.35096967]
[1755183300050,0.6760278,119030.0,119010.0,0.3608]
[1755183300051,0.2764848,119020.0,119010.0,0.86056967]
[1755183300351,0.2764848,119020.0,119000.0,1.22188]
[1755183300352,0.5560419,119010.0,119000.0,1.22188]
[1755183300545,0.74606472,119010.0,119000.0,1.22188]
[1755183301252,0.61606472,119010.0,119000.0,1.22188]
[1755183301455,0.72606472,119010.0,119000.0,1.72164967]
[1755183301642,0.61606472,119010.0,119000.0,1.72164967]
[1755183301850,0.10695282,119010.0,119000.0,1.72164967]
[1755183302247,0.19093412,119010.0,119000.0,1.72364967]
[1755183302454,0.10695282,119010.0,119000.0,1.72364967]
[1755183302851,0.06002282,119010.0,119000.0,1.72364967]
[1755183303043,0.06002282,119010.0,119000.0,1.72564967]
[1755183303245,0.06002282,119020.0,119000.0,1.89371367]
[1755183303448,0.06002282,119020.0,119010.0,0.86056967]
[1755183303655,0.10695282,119030.0,119010.0,0.86056967]
[1755183303855,0.10695282,119030.0,119020.0,1.71140967]
[1755183304245,0.11737081,119040.0,119020.0,1.87944167]
[1755183304555,0.14763109,119040.0,119030.0,0.81517931]
[1755183304757,0.14763109,119040.0,119030.0,0.65631867]
[1755183304959,0.11699739,119040.0,119030.0,0.82433467]
[1755183305161,0.16392739,119040.0,119030.0,0.324565]
[1755183305351,0.16392739,119040.0,119030.0,0.82433467]
[1755183305661,0.24788759,119040.0,119030.0,0.82433467]
[1755183306060,0.16392739,119040.0,119030.0,0.82433467]
[1755183306262,0.08889966,119040.0,119030.0,0.82433467]
[1755183306451,0.08989966,119040.0,119030.0,0.82433467]
[1755183306954,0.07502773,119050.0,119030.0,1.02513467]
[1755183307163,0.07506856,119050.0,119040.0,2.21005934]
[1755183307365,0.07506856,119050.0,119040.0,1.71028967]
[1755183307560,0.07506856,119050.0,119040.0,1.87908966]
[1755183307761,0.07506856,119050.0,119040.0,1.87808966]
[1755183308356,0.07606856,119050.0,119040.0,1.87808966]
[1755183308556,0.2987636,119070.0,119040.0,3.57739867]
[1755183308760,0.2987636,119070.0,119060.0,0.49976967]
[1755183308958,0.15282689,119070.0,119060.0,1.35012967]
[1755183309162,0.10589689,119070.0,119060.0,1.35012967]
[1755183309463,0.1059022,119070.0,119060.0,1.70992967]
[1755183309662,0.0219631,119070.0,119060.0,1.87790567]
[1755183309855,0.14735271,119070.0,119060.0,1.87790567]
[1755183310165,0.06641361,119070.0,119060.0,1.87690567]
[1755183310358,0.15035271,119070.0,119060.0,1.87690567]
[1755183310864,0.15235271,119070.0,119060.0,1.379136]
[1755183311070,0.15235271,119070.0,119060.0,1.87890567]
[1755183311671,0.21943932,119070.0,119060.0,1.71092967]
[1755183311864,0.26636932,119070.0,119060.0,1.71092967]
[1755183312061,0.26636932,119070.0,119060.0,0.3608]
[1755183312272,0.49898932,119070.0,119060.0,1.71052967]
[1755183312865,0.18243022,119070.0,119060.0,1.71052967]
[1755183313866,0.26636932,119070.0,119060.0,1.21076]
[1755183314167,0.26636932,119070.0,119060.0,1.71052967]
[1755183314674,0.18243022,119070.0,119060.0,1.71052967]
[1755183315772,0.26636932,119070.0,119060.0,1.71052967]
[1755183315972,0.18243022,119070.0,119060.0,1.71052967]
[1755183316168,0.26636932,119070.0,119060.0,1.71052967]
[1755183316373,0.18243022,119070.0,119060.0,1.71052967]
[1755183316775,0.26636932,119070.0,119060.0,1.21076]
[1755183316965,0.26636932,119070.0,119060.0,1.71052967]
[1755183317966,0.13550022,119070.0,119060.0,1.71052967]
[1755183318171,0.26636912,119070.0,119060.0,1.71052967]
[1755183319475,0.42717912,119070.0,119060.0,1.71052967]
[1755183319875,0.49898912,119070.0,119060.0,1.71052967]
[1755183320770,0.26636912,119070.0,119060.0,1.71052967]
[1755183320970,0.18243022,119070.0,119060.0,1.71052967]
[1755183321171,0.13550022,119070.0,119060.0,1.71052967]
[1755183322068,0.18243022,119070.0,119060.0,1.71052967]
[1755183322370,0.13550022,119070.0,119060.0,1.71052967]
[1755183323566,0.214799,119080.0,119060.0,1.379536]
[1755183323567,0.06018861,119080.0,119060.0,1.379536]
[1755183323770,0.06018861,119080.0,119070.0,0.86056967]
[1755183323968,0.25750471,119090.0,119070.0,0.86056967]
[1755183324163,0.25750471,119090.0,119080.0,1.34844967]
[1755183324567,0.08964961,119090.0,119080.0,1.34844967]
[1755183324769,0.08964961,119090.0,119080.0,1.70924967]
[1755183324970,0.17357451,119090.0,119080.0,1.34444967]
[1755183325168,0.24169708,119090.0,119080.0,1.34444967]
[1755183325770,0.67131708,119090.0,119080.0,1.34824967]
[1755183326082,0.67131708,119090.0,119080.0,1.34620967]
[1755183326777,0.67431708,119090.0,119080.0,1.34620967]
[1755183326972,0.5651319,119080.0,119070.0,0.3608]
[1755183327170,0.5651319,119080.0,119070.0,0.86056967]
[1755183327363,0.5651319,119080.0,119070.0,1.70884967]
[1755183328975,0.5671319,119080.0,119070.0,1.70884967]
[1755183329679,0.5681319,119080.0,119070.0,1.70884967]
[1755183329976,0.5681319,119080.0,119060.0,0.86056967]
[1755183329977,0.6781319,119080.0,119060.0,0.86056967]
[1755183330176,0.0839461,119060.0,119050.0,0.3608]
[1755183330380,0.04845,119050.0,119040.0,0.86056967]
[1755183330571,0.04845,119050.0,119040.0,1.70852967]
[1755183331178,0.04845,119050.0,119040.0,0.86056967]
[1755183331565,0.1324031,119050.0,119040.0,0.86056967]
[1755183332277,0.3712631,119050.0,119040.0,0.86056967]
[1755183332569,0.4500831,119050.0,119040.0,0.86056967]
[1755183332880,0.5651531,119050.0,119040.0,0.86156967]
[1755183333081,0.5651531,119050.0,119040.0,0.50076967]
[1755183333577,0.5651531,119050.0,119040.0,0.003]
[1755183333881,0.9867531,119050.0,119040.0,0.003]
[1755183335174,0.9259531,119050.0,119040.0,0.50276967]
[1755183335376,0.4812,119050.0,119040.0,0.86356967]
[1755183335675,0.06954546,119050.0,119040.0,0.86356967]
[1755183336679,0.15349856,119050.0,119040.0,0.86356967]
[1755183337074,0.44053856,119050.0,119040.0,0.86356967]
[1755183337382,0.58624856,119050.0,119040.0,0.86356967]
[1755183337776,0.50229546,119050.0,119040.0,0.86356967]
[1755183337978,0.06954546,119050.0,119040.0,0.86356967]
[1755183339275,0.06954546,119050.0,119040.0,0.3638]
[1755183339482,0.06954546,119050.0,119040.0,0.86356967]
[1755183339979,0.02109546,119050.0,119040.0,0.86356967]
[1755183340483,0.02109546,119050.0,119040.0,1.03156966]
[1755183340685,0.10504856,119050.0,119040.0,0.86356967]
[1755183340881,0.15349856,119050.0,119040.0,0.86356967]
[1755183341185,0.58624856,119050.0,119040.0,0.86356967]
[1755183341787,0.58624856,119050.0,119040.0,0.3638]
[1755183341977,0.58624856,119050.0,119040.0,0.003]
[1755183342178,0.69624856,119050.0,119040.0,0.003]
[1755183342481,0.86315856,119050.0,119040.0,0.003]
[1755183342683,0.86395856,119050.0,119040.0,0.003]
[1755183343182,0.86315856,119050.0,119040.0,0.003]
[1755183343481,0.75315856,119050.0,119040.0,0.50276967]
[1755183343887,0.75315846,119050.0,119040.0,0.50276967]
[1755183344279,0.39235846,119050.0,119040.0,0.50276967]
[1755183344474,0.39235846,119050.0,119040.0,0.003]
[1755183344780,0.86315846,119050.0,119040.0,0.50276967]
[1755183344980,0.86008649,119050.0,119040.0,0.50276967]
[1755183346675,0.52533349,119050.0,119040.0,0.50276967]
[1755183346879,0.41533349,119050.0,119040.0,0.50276967]
[1755183347388,0.49928659,119050.0,119040.0,0.50276967]
[1755183347590,0.82317659,119050.0,119040.0,0.50276967]
[1755183348891,1.18397659,119050.0,119040.0,0.50276967]
[1755183350691,1.18397659,119050.0,119040.0,0.003]
[1755183351081,1.18543942,119050.0,119040.0,0.003]
[1755183351989,0.3516171,119030.0,119020.0,0.86056967]
[1755183352183,0.71626256,119030.0,119020.0,0.86056967]
[1755183352390,0.58626256,119030.0,119020.0,0.86056967]
[1755183352685,0.2778642,119020.0,119010.0,0.86056967]
[1755183352886,0.58626966,119020.0,119010.0,0.3608]
[1755183353191,0.58626966,119020.0,119010.0,0.86056967]
[1755183353393,0.50229546,119020.0,119010.0,0.86056967]
[1755183353692,0.58626966,119020.0,119010.0,0.86056967]
[1755183354189,0.50229546,119020.0,119010.0,0.86056967]
[1755183354390,0.58626956,119020.0,119010.0,0.86456967]
[1755183354986,0.50229546,119020.0,119010.0,0.86456967]
[1755183355187,0.06954546,119020.0,119010.0,0.86836967]
[1755183355386,0.02109546,119020.0,119010.0,0.86836967]
[1755183355587,0.0910057,119030.0,119010.0,1.03641767]
[1755183355789,0.0414257,119030.0,119020.0,0.86056967]
[1755183355983,0.1335411,119040.0,119020.0,0.86056967]
[1755183356183,0.1335411,119040.0,119030.0,0.86056967]
[1755183356383,0.17500882,119040.0,119030.0,0.86056967]
[1755183356587,0.17500772,119040.0,119030.0,0.86056967]
[1755183356789,0.04146772,119040.0,119030.0,0.86136967]
[1755183356983,0.05104283,119050.0,119030.0,0.86136967]
[1755183357193,0.04958,119060.0,119040.0,0.86056967]
[1755183357391,0.09177891,119060.0,119050.0,0.86056967]
[1755183357587,0.17572491,119060.0,119050.0,0.86056967]
[1755183358393,0.24354241,119060.0,119050.0,0.86056967]
[1755183358594,0.47856241,119060.0,119050.0,0.86056967]
[1755183359493,0.47856241,119060.0,119050.0,0.3608]
[1755183359695,0.47856241,119060.0,119050.0,0.86056967]
[1755183360291,0.58575424,119060.0,119050.0,0.49976967]
[1755183360595,0.58575424,119060.0,119040.0,0.3608]
[1755183360596,0.368553,119050.0,119040.0,0.3608]
[1755183360797,0.368553,119050.0,119040.0,0.86056967]
[1755183361294,0.11001641,119060.0,119040.0,0.86056967]
[1755183361493,0.04958,119060.0,119050.0,0.86056967]
[1755183361796,0.11698783,119060.0,119050.0,0.86056967]
[1755183361997,0.207996,119060.0,119050.0,0.86056967]
[1755183362191,0.368546,119060.0,119050.0,0.86056967]
[1755183362895,0.368546,119060.0,119050.0,0.49976967]
[1755183363197,0.368553,119050.0,119040.0,0.50076967]
[1755183363589,0.368553,119050.0,119040.0,0.86056967]
[1755183363990,0.2846,119050.0,119040.0,0.86056967]
[1755183364285,0.368553,119050.0,119040.0,0.86056967]
[1755183364487,0.368553,119050.0,119040.0,0.3618]
[1755183364691,0.378553,119050.0,119040.0,0.001]
[1755183364895,0.739353,119050.0,119040.0,0.001]
[1755183365095,0.740153,119050.0,119040.0,0.001]
[1755183365397,0.0839812,119010.0,119000.0,0.3708]
[1755183365598,0.3685812,119010.0,119000.0,0.50976967]
[1755183366197,0.3685812,119010.0,119000.0,0.87056967]
[1755183366591,0.04958,119010.0,119000.0,0.87056967]
[1755183366898,0.4869538,119020.0,119000.0,1.03863367]
[1755183366899,0.04958,119020.0,119000.0,1.03863367]
[1755183367096,0.04958,119020.0,119010.0,0.86056967]
[1755183367600,0.07251801,119020.0,119010.0,0.86056967]
[1755183367798,0.15649221,119020.0,119010.0,0.86056967]
[1755183367993,0.39151221,119020.0,119010.0,0.86056967]
[1755183368298,0.39151221,119020.0,119010.0,0.49976967]
[1755183368497,0.3685812,119010.0,119000.0,0.3778]
[1755183368687,0.39151921,119010.0,119000.0,0.87756967]
[1755183368886,0.07251801,119010.0,119000.0,0.87756967]
[1755183369693,0.15649921,119010.0,119000.0,0.87356967]
[1755183369893,0.07251801,119010.0,119000.0,0.87656967]
[1755183370294,0.07251801,119010.0,119000.0,0.87356967]
[1755183370496,0.07251801,119010.0,119000.0,0.3748]
[1755183370694,0.07251801,119010.0,119000.0,0.87456967]
[1755183370893,0.02293801,119010.0,119000.0,0.87456967]
[1755183371302,0.15649441,119020.0,119000.0,0.87756967]
[1755183371501,0.15747704,119020.0,119010.0,0.86056967]
[1755183371802,0.07350064,119020.0,119010.0,0.86056967]
[1755183372006,0.15747484,119020.0,119010.0,0.86056967]
[1755183372906,0.39249484,119020.0,119010.0,0.86056967]
[1755183373094,0.15747484,119020.0,119010.0,0.86056967]
[1755183373702,0.15747484,119020.0,119010.0,0.86356967]
[1755183374302,0.23405064,119020.0,119010.0,0.86356967]
[1755183374504,0.31802484,119020.0,119010.0,0.86356967]
[1755183374702,0.15747484,119020.0,119010.0,0.86356967]
[1755183374895,0.07350064,119020.0,119010.0,0.86356967]
[1755183375205,0.07350064,119020.0,119010.0,0.86556967]
[1755183376599,0.02392064,119020.0,119010.0,0.86556967]
[1755183377798,0.07350064,119020.0,119010.0,0.86556967]
[1755183378596,0.15747484,119020.0,119010.0,0.86556967]
[1755183378798,0.23194484,119020.0,119010.0,0.86556967]
[1755183378997,0.39249484,119020.0,119010.0,0.3658]
[1755183379205,0.39249484,119020.0,119010.0,0.86556967]
[1755183379601,0.14797064,119020.0,119010.0,0.86556967]
[1755183379805,0.15747484,119020.0,119010.0,0.86556967]
[1755183380099,0.10789484,119020.0,119010.0,0.86556967]
[1755183380303,0.15747484,119020.0,119010.0,0.86556967]
[1755183380503,0.39249484,119020.0,119010.0,0.86556967]
[1755183380896,0.39329484,119020.0,119010.0,0.3658]
[1755183381294,0.0847812,119010.0,119000.0,0.3708]
[1755183381498,0.80330184,119010.0,119000.0,0.01]
[1755183381710,0.80330184,119010.0,119000.0,0.50976967]
[1755183381902,0.39250184,119010.0,119000.0,0.50976967]
[1755183382604,0.75330184,119010.0,119000.0,0.50976967]
[1755183382798,0.75330184,119010.0,119000.0,0.015]
[1755183383001,0.39250184,119010.0,119000.0,0.015]
[1755183383201,0.39250184,119010.0,119000.0,0.017]
[1755183383399,0.39250184,119010.0,119000.0,0.51676967]
[1755183383702,0.39250184,119010.0,119000.0,0.87756967]